fUST/lending_fUST_20250614
["ID","MTS","AMOUNT","RATE_DAILY","PERIOD"]
[365785790,1749912634840,-460.0,0.00021917,4]
[365785791,1749912634850,-460.0,0.00021917,4]
[365785792,1749912634860,-460.0,0.00021917,4]
[365785793,1749912634869,-460.0,0.00021917,4]
[365785794,1749912634879,-460.0,0.00021917,4]
[365785795,1749912634888,-460.0,0.00021917,4]
[365785796,1749912634897,-758.04,0.00021917,4]
[365785797,1749912634907,-460.0,0.00021917,4]
[365785798,1749912634916,-460.0,0.00021917,4]
[365785799,1749912634926,-460.0,0.00021917,4]
[365785800,1749912634935,-540.39180069,0.00021917,4]
[365785801,1749912634945,-460.0,0.00021917,4]
[365785802,1749912634955,-605.91499536,0.00021917,4]
[365785803,1749912634965,-431.27618514,0.00021917,4]
[365785804,1749912634975,-823.35,0.00021917,4]
[365785805,1749912634984,-460.0,0.00021917,4]
[365785806,1749912634993,-460.0,0.00021917,4]
[365785807,1749912635003,-460.0,0.00021917,4]
[365785808,1749912635013,-460.0,0.00021917,4]
[365785809,1749912635022,-325.37708043,0.00021917,4]
[365785810,1749912635032,-460.0,0.00021917,4]
[365785811,1749912635041,-460.0,0.00021917,4]
[365785812,1749912635050,-460.0,0.00021917,4]
[365785813,1749912635059,-460.0,0.00021917,4]
[365785814,1749912635068,-444.63896894,0.00021917,4]
[365785815,1749912635078,-460.0,0.00021917,4]
[365785816,1749912635087,-430.0,0.00021917,4]
[365785817,1749912635096,-460.0,0.00021917,4]
[365785818,1749912635106,-460.0,0.00021917,4]
[365785819,1749912635115,-318.86678483,0.00021917,4]
[365785820,1749912635124,-460.0,0.00021917,4]
[365785821,1749912635133,-460.0,0.00021917,4]
[365785822,1749912635143,-425.96863246,0.00021917,4]
[365785823,1749912635152,-507.45,0.00021917,4]
[365785824,1749912635161,-440.0,0.00021917,4]
[365785825,1749912635170,-460.0,0.00021917,4]
[365785826,1749912635179,-440.0,0.00021917,4]
[365785827,1749912635189,-460.0,0.00021917,4]
[365785828,1749912635198,-460.0,0.00021917,4]
[365785829,1749912635208,-460.0,0.00021917,4]
[365785830,1749912635218,-460.0,0.00021917,4]
[365785831,1749912635228,-460.0,0.00021917,4]
[365785832,1749912635237,-2711.89,0.00021917,4]
[365785833,1749912635246,-460.0,0.00021917,4]
[365785834,1749912635256,-460.0,0.00021917,4]
[365785835,1749912635265,-460.0,0.00021917,4]
[365785836,1749912635276,-493.31,0.00021917,4]
[365785837,1749912635286,-500.0,0.00021917,2]
[365785838,1749912635295,-460.0,0.00021917,4]
[365785839,1749912635304,-483.25,0.00021917,4]
[365785840,1749912635314,-440.0,0.00021917,4]
[365785841,1749912635323,-417.0134311,0.00021917,4]
[365785842,1749912635332,-440.0,0.00021917,4]
[365785843,1749912635341,-2513.15,0.00021917,4]
[365785844,1749912635350,-317.78238566,0.00021917,4]
[365785845,1749912635359,-460.0,0.00021917,4]
[365785846,1749912635369,-1320.67,0.00021917,4]
[365785847,1749912635378,-460.0,0.00021917,2]
[365785848,1749912635387,-460.0,0.00021917,4]
[365785849,1749912635396,-460.0,0.00021917,4]
[365785850,1749912635406,-460.0,0.00021917,4]
[365785851,1749912635415,-460.0,0.00021917,4]
[365785852,1749912635424,-370.0,0.00021917,4]
[365785853,1749912635434,-2043.42,0.00021917,4]
[365785854,1749912635443,-460.0,0.00021917,4]
[365785855,1749912635453,-395.60790859,0.00021917,4]
[365785856,1749912635463,-460.0,0.00021917,4]
[365785857,1749912635472,-460.0,0.00021917,4]
[365785858,1749912635482,-240.0,0.00021917,4]
[365785859,1749912635491,-460.0,0.00021917,4]
[365785860,1749912635501,-216.62490684,0.00021917,4]
[365785861,1749912635510,-460.0,0.00021917,4]
[365785862,1749912635519,-357.76999194,0.00021917,4]
[365785863,1749912635528,-460.0,0.00021917,4]
[365785864,1749912635537,-2023.79,0.00021917,4]
[365785865,1749912635547,-460.0,0.00021917,4]
[365785866,1749912635557,-430.0,0.00021917,4]
[365785867,1749912635567,-460.0,0.00021917,4]
[365785868,1749912635577,-460.0,0.00021917,4]
[365785869,1749912635587,-460.0,0.00021917,4]
[365785870,1749912635596,-430.0,0.00021917,4]
[365785871,1749912635606,-460.0,0.00021917,4]
[365785872,1749912635616,-460.0,0.00021917,4]
[365785873,1749912635625,-460.0,0.00021917,4]
[365785874,1749912635634,-460.0,0.00021917,4]
[365785875,1749912635643,-460.0,0.00021917,4]
[365785876,1749912635653,-350.0,0.00021917,4]
[365785877,1749912635762,-430.0,0.00021917,4]
[365785878,1749912635773,-1265.12,0.00021917,4]
[365785879,1749912635782,-3168.06,0.00021917,4]
[365785880,1749912635792,-713.72,0.00021917,4]
[365785881,1749912635803,-460.0,0.00021917,4]
[365785882,1749912635813,-460.0,0.00021917,4]
[365785883,1749912635822,-460.0,0.00021917,4]
[365785884,1749912635832,-498.12693976,0.00021917,4]
[365785885,1749912635841,-460.0,0.00021917,4]
[365785886,1749912635851,-460.0,0.00021917,4]
[365785887,1749912635860,-3124.29,0.00021917,4]
[365785888,1749912635870,-568.72,0.00021917,4]
[365785889,1749912635879,-460.0,0.00021917,4]
[365785890,1749912635888,-430.0,0.00021917,4]
[365785891,1749912635899,-430.0,0.00021917,4]
[365785892,1749912635908,-460.0,0.00021917,4]
[365785893,1749912635918,-460.0,0.00021917,4]
[365785894,1749912635927,-978.65,0.00021917,4]
[365785895,1749912635936,-408.19366394,0.00021917,4]
[365785896,1749912635945,-1354.42,0.00021917,4]
[365785897,1749912635955,-460.0,0.00021917,4]
[365785898,1749912635965,-460.0,0.00021917,4]
[365785899,1749912635975,-430.0,0.00021917,4]
[365785900,1749912635985,-460.0,0.00021917,4]
[365785901,1749912635994,-440.0,0.00021917,4]
[365785902,1749912636004,-460.0,0.00021917,4]
[365785903,1749912636013,-460.0,0.00021917,4]
[365785904,1749912636023,-460.0,0.00021917,4]
[365785905,1749912636033,-460.0,0.00021917,4]
[365785906,1749912636043,-1635.93,0.00021917,4]
[365785907,1749912636053,-460.0,0.00021917,4]
[365785908,1749912636066,-460.0,0.00021917,4]
[365785909,1749912636075,-2896.64,0.00021917,4]
[365785910,1749912636085,-460.0,0.00021917,4]
[365785911,1749912636094,-460.0,0.00021917,4]
[365785912,1749912636103,-404.24566802,0.00021917,4]
[365785913,1749912636113,-460.0,0.00021917,4]
[365785914,1749912636123,-460.0,0.00021917,4]
[365785915,1749912636132,-2271.64,0.00021917,4]
[365785916,1749912636141,-460.0,0.00021917,4]
[365785917,1749912636151,-189.06793752,0.00021917,2]
[365785918,1749912636160,-252.65635528,0.00021917,4]
[365785919,1749912636169,-440.0,0.00021917,4]
[365785920,1749912636178,-1048.61,0.00021917,4]
[365785921,1749912636189,-460.0,0.00021917,4]
[365785922,1749912636200,-460.0,0.00021917,4]
[365785923,1749912636210,-300.0,0.00021917,4]
[365785924,1749912636219,-440.0,0.00021917,4]
[365785925,1749912636229,-500.0,0.00021973,2]
[365785926,1749912636239,-500.0,0.00021973,2]
[365785927,1749912636249,-500.0,0.00021973,2]
[365785928,1749912636259,-500.0,0.00021973,2]
[365785929,1749912636268,-500.0,0.00021973,2]
[365785930,1749912636278,-500.0,0.00021973,2]
[365785931,1749912636287,-500.0,0.00021973,2]
[365785932,1749912636297,-500.0,0.00021973,2]
[365785933,1749912636308,-500.0,0.00021973,2]
[365785934,1749912636319,-500.0,0.00021973,2]
[365785935,1749912636331,-500.0,0.00021973,2]
[365785936,1749912636342,-500.0,0.00021973,2]
[365785937,1749912636352,-511.50660448,0.00021973,2]
[365785938,1749912636363,-500.0,0.00021973,2]
[365785939,1749912636372,-611.5896609,0.00021973,2]
[365785940,1749912636382,-361.79037276,0.00021973,2]
[365785941,1749912636391,-500.0,0.00021973,2]
[365785942,1749912636400,-500.0,0.00021973,2]
[365785943,1749912636411,-500.0,0.00021973,2]
[365785944,1749912636420,-172.0,0.00022,2]
[365785945,1749912636429,-182.0,0.00022,2]
[365785946,1749912636439,-479.18919863,0.00022003,6]
[365785947,1749912636448,-11174.44650097,0.00022091,2]
[365785948,1749912636457,-479.18919863,0.00022107,6]
[365785949,1749912636467,-500.0,0.0002219,4]
[365785950,1749912636476,-500.0,0.0002219,4]
[365785951,1749912636485,-500.0,0.0002219,4]
[365785952,1749912636495,-240.0,0.00022191,4]
[365785953,1749912636504,-460.0,0.00022191,4]
[365785954,1749912636513,-460.0,0.00022191,4]
[365785955,1749912636522,-460.0,0.00022191,4]
[365785956,1749912636532,-460.0,0.00022191,4]
[365785957,1749912636541,-340.0,0.00022191,4]
[365785958,1749912636550,-460.0,0.00022191,4]
[365785959,1749912636561,-460.0,0.00022191,4]
[365785960,1749912636572,-391.83496365,0.00022191,4]
[365785961,1749912636583,-688.35,0.00022191,4]
[365785962,1749912636592,-460.0,0.00022191,4]
[365785963,1749912636607,-460.0,0.00022191,4]
[365785964,1749912636616,-460.0,0.00022191,4]
[365785965,1749912636631,-460.0,0.00022191,4]
[365785966,1749912636641,-460.0,0.00022191,4]
[365785967,1749912636651,-460.0,0.00022191,4]
[365785968,1749912636662,-460.0,0.00022191,4]
[365785969,1749912636672,-460.58418504,0.00022191,4]
[365785970,1749912636682,-460.0,0.00022191,4]
[365785971,1749912636691,-316.01161659,0.00022191,4]
[365785972,1749912636701,-460.0,0.00022191,4]
[365785973,1749912636711,-715.45,0.00022191,4]
[365785974,1749912636723,-460.0,0.00022191,4]
[365785975,1749912636733,-738.45,0.00022191,4]
[365785976,1749912636744,-460.0,0.00022191,4]
[365785977,1749912636754,-460.0,0.00022191,4]
[365785978,1749912636764,-460.0,0.00022191,4]
[365785979,1749912636774,-460.0,0.00022191,4]
[365785980,1749912636783,-460.0,0.00022191,4]
[365785981,1749912636793,-460.0,0.00022191,4]
[365785982,1749912636802,-758.04,0.00022191,4]
[365785983,1749912636812,-460.0,0.00022191,4]
[365785984,1749912636821,-460.0,0.00022191,4]
[365785985,1749912636831,-823.35,0.00022191,4]
[365785986,1749912636840,-237.63876592,0.00022191,4]
[365785987,1749912636849,-460.0,0.00022191,4]
[365785988,1749912636859,-160.0,0.00022191,4]
[365785989,1749912636868,-460.0,0.00022191,4]
[365785990,1749912636877,-460.0,0.00022191,4]
[365785991,1749912636887,-507.45,0.00022191,4]
[365785992,1749912636896,-460.0,0.00022191,4]
[365785993,1749912636906,-460.0,0.00022191,4]
[365785994,1749912636915,-460.0,0.00022191,4]
[365785995,1749912636924,-460.0,0.00022191,4]
[365785996,1749912636934,-460.0,0.00022191,4]
[365785997,1749912636943,-2711.89,0.00022191,4]
[365785998,1749912636952,-300.0,0.00022191,4]
[365785999,1749912636961,-493.31,0.00022191,4]
[365786000,1749912636970,-460.0,0.00022191,4]
[365786001,1749912636979,-483.25,0.00022191,4]
[365786002,1749912636988,-2513.15,0.00022191,4]
[365786003,1749912636998,-460.0,0.00022191,4]
[365786004,1749912637007,-1320.67,0.00022191,4]
[365786005,1749912637016,-460.0,0.00022191,2]
[365786006,1749912637025,-460.0,0.00022191,4]
[365786007,1749912637035,-460.0,0.00022191,4]
[365786008,1749912637044,-460.0,0.00022191,4]
[365786009,1749912637054,-460.0,0.00022191,4]
[365786010,1749912637063,-2043.42,0.00022191,4]
[365786011,1749912637072,-230.0,0.00022191,4]
[365786012,1749912637081,-460.0,0.00022191,4]
[365786013,1749912637090,-460.0,0.00022191,4]
[365786014,1749912637099,-2023.79,0.00022191,4]
[365786015,1749912637108,-420.0,0.00022191,4]
[365786016,1749912637118,-460.0,0.00022191,4]
[365786017,1749912637127,-314.76786021,0.00022191,4]
[365786018,1749912637136,-460.0,0.00022191,4]
[365786019,1749912637145,-430.0,0.00022191,4]
[365786020,1749912637154,-460.0,0.00022191,4]
[365786021,1749912637163,-460.0,0.00022191,4]
[365786022,1749912637172,-1265.12,0.00022191,4]
[365786023,1749912637181,-3168.06,0.00022191,4]
[365786024,1749912637191,-713.72,0.00022191,4]
[365786025,1749912637200,-460.0,0.00022191,4]
[365786026,1749912637210,-460.0,0.00022191,4]
[365786027,1749912637220,-3124.29,0.00022191,4]
[365786028,1749912637230,-568.72,0.00022191,4]
[365786029,1749912637240,-460.0,0.00022191,4]
[365786030,1749912637250,-460.0,0.00022191,4]
[365786031,1749912637259,-460.0,0.00022191,4]
[365786032,1749912637269,-978.65,0.00022191,4]
[365786033,1749912637278,-1354.42,0.00022191,4]
[365786034,1749912637288,-460.0,0.00022191,4]
[365786035,1749912637297,-460.0,0.00022191,4]
[365786036,1749912637307,-460.0,0.00022191,4]
[365786037,1749912637316,-460.0,0.00022191,4]
[365786038,1749912637326,-280.0,0.00022191,4]
[365786039,1749912637335,-1635.93,0.00022191,4]
[365786040,1749912637345,-460.0,0.00022191,4]
[365786041,1749912637355,-2896.64,0.00022191,4]
[365786042,1749912637364,-460.0,0.00022191,4]
[365786043,1749912637374,-460.0,0.00022191,4]
[365786044,1749912637383,-460.0,0.00022191,4]
[365786045,1749912637392,-2271.64,0.00022191,4]
[365786046,1749912637402,-460.0,0.00022191,4]
[365786047,1749912637411,-1048.61,0.00022191,4]
[365786048,1749912637420,-460.0,0.00022191,4]
[365786049,1749912637430,-479.18919863,0.0002221,6]
[365786050,1749912637439,-303.0,0.00022247,2]
[365786051,1749912637449,-500.0,0.0002225,2]
[365786052,1749912637462,-1526.0,0.0002228,2]
[365786053,1749912637472,-1909.14178106,0.00022281,2]
[365786054,1749912637482,-479.18919863,0.00022314,7]
[365786055,1749912637491,-420.0,0.00022332,2]
[365786056,1749912637501,-500.0,0.00022364,4]
[365786057,1749912637510,-479.18919863,0.00022417,7]
[365786058,1749912637520,-420.0,0.00022443,2]
[365786059,1749912637530,-420.0,0.00022443,2]
[365786060,1749912637539,-300.0,0.00022443,2]
[365786061,1749912637548,-500.0,0.00022464,4]
[365786062,1749912637558,-500.0,0.00022464,4]
[365786063,1749912637567,-460.0,0.00022465,4]
[365786064,1749912637577,-460.0,0.00022465,4]
[365786065,1749912637587,-150.0,0.00022465,4]
[365786066,1749912637596,-460.0,0.00022465,4]
[365786067,1749912637606,-460.0,0.00022465,4]
[365786068,1749912637616,-436.73886677,0.00022465,4]
[365786069,1749912637626,-688.35,0.00022465,4]
[365786070,1749912637635,-460.0,0.00022465,4]
[365786071,1749912637645,-460.0,0.00022465,4]
[365786072,1749912637654,-250.92745137,0.00022465,4]
[365786073,1749912637667,-460.0,0.00022465,4]
[365786074,1749912637676,-460.0,0.00022465,4]
[365786075,1749912637686,-460.0,0.00022465,4]
[365786076,1749912637696,-715.45,0.00022465,4]
[365786077,1749912637708,-460.0,0.00022465,4]
[365786078,1749912637717,-738.45,0.00022465,4]
[365786079,1749912637726,-460.0,0.00022465,4]
[365786080,1749912637736,-460.0,0.00022465,4]
[365786081,1749912637746,-460.0,0.00022465,4]
[365786082,1749912637756,-460.0,0.00022465,4]
[365786083,1749912637766,-460.0,0.00022465,4]
[365786084,1749912637776,-460.0,0.00022465,4]
[365786085,1749912637786,-758.04,0.00022465,4]
[365786086,1749912637795,-460.0,0.00022465,4]
[365786087,1749912637805,-460.0,0.00022465,4]
[365786088,1749912637815,-823.35,0.00022465,4]
[365786089,1749912637824,-460.0,0.00022465,4]
[365786090,1749912637833,-460.0,0.00022465,4]
[365786091,1749912637843,-460.0,0.00022465,4]
[365786092,1749912637853,-507.45,0.00022465,4]
[365786093,1749912637862,-460.0,0.00022465,4]
[365786094,1749912637871,-460.0,0.00022465,4]
[365786095,1749912637880,-400.0,0.00022465,4]
[365786096,1749912637889,-460.0,0.00022465,4]
[365786097,1749912637898,-420.0,0.00022465,4]
[365786098,1749912637908,-2711.89,0.00022465,4]
[365786099,1749912637917,-493.31,0.00022465,4]
[365786100,1749912637927,-460.0,0.00022465,4]
[365786101,1749912637936,-483.25,0.00022465,4]
[365786102,1749912637946,-2513.15,0.00022465,4]
[365786103,1749912637956,-460.0,0.00022465,4]
[365786104,1749912637965,-1320.67,0.00022465,4]
[365786105,1749912637975,-460.0,0.00022465,2]
[365786106,1749912637985,-460.0,0.00022465,4]
[365786107,1749912637995,-460.0,0.00022465,4]
[365786108,1749912638006,-460.0,0.00022465,4]
[365786109,1749912638015,-460.0,0.00022465,4]
[365786110,1749912638026,-2043.42,0.00022465,4]
[365786111,1749912638034,-460.0,0.00022465,4]
[365786112,1749912638044,-460.0,0.00022465,4]
[365786113,1749912638053,-2023.79,0.00022465,4]
[365786114,1749912638063,-460.0,0.00022465,4]
[365786115,1749912638072,-460.0,0.00022465,4]
[365786116,1749912638081,-460.0,0.00022465,4]
[365786117,1749912638090,-460.0,0.00022465,4]
[365786119,1749912638099,-1265.12,0.00022465,4]
[365786120,1749912638108,-3168.06,0.00022465,4]
[365786122,1749912638208,-713.72,0.00022465,4]
[365786123,1749912638218,-290.0,0.00022465,4]
[365786124,1749912638229,-460.0,0.00022465,4]
[365786125,1749912638240,-3124.29,0.00022465,4]
[365786126,1749912638250,-568.72,0.00022465,4]
[365786127,1749912638259,-460.0,0.00022465,4]
[365786128,1749912638269,-460.0,0.00022465,4]
[365786129,1749912638279,-460.0,0.00022465,4]
[365786130,1749912638288,-978.65,0.00022465,4]
[365786131,1749912638298,-1354.42,0.00022465,4]
[365786133,1749912638308,-460.0,0.00022465,4]
[365786135,1749912638318,-310.36266659,0.00022465,4]
[365786136,1749912638327,-460.0,0.00022465,4]
[365786137,1749912638336,-460.0,0.00022465,4]
[365786138,1749912638354,-1635.93,0.00022465,4]
[365786139,1749912638366,-460.0,0.00022465,4]
[365786140,1749912638376,-2896.64,0.00022465,4]
[365786141,1749912638386,-460.0,0.00022465,4]
[365786142,1749912638396,-460.0,0.00022465,4]
[365786143,1749912638406,-460.0,0.00022465,4]
[365786144,1749912638416,-2271.64,0.00022465,4]
[365786145,1749912638427,-460.0,0.00022465,4]
[365786146,1749912638438,-1048.61,0.00022465,4]
[365786147,1749912638451,-460.0,0.00022465,4]
[365786148,1749912638461,-508.24194417,0.00022521,2]
[365786149,1749912638471,-479.18919863,0.00022521,7]
[365786150,1749912638480,-1005.0,0.00022549,2]
[365786151,1749912638491,-682.54733863,0.0002255,2]
[365786152,1749912638501,-153.0,0.00022575,2]
[365786153,1749912638511,-378.100643,0.00022575,2]
[365786154,1749912638521,-153.0,0.00022575,2]
[365786155,1749912638531,-299.9418461,0.00022575,2]
[365786156,1749912638541,-179.40705,0.00022575,2]
[365786157,1749912638551,-176.9937618,0.00022575,2]
[365786158,1749912638561,-158.8714084,0.00022575,2]
[365786159,1749912638571,-153.0,0.00022575,2]
[365786160,1749912638581,-153.0,0.00022575,2]
[365786161,1749912638591,-176.9937618,0.00022575,2]
[365786162,1749912638601,-153.0,0.00022575,2]
[365786163,1749912638611,-153.0,0.00022575,2]
[365786164,1749912638620,-153.0,0.00022575,2]
[365786165,1749912638630,-153.0,0.00022575,2]
[365786166,1749912638640,-153.0,0.00022575,2]
[365786167,1749912638650,-153.0,0.00022575,2]
[365786168,1749912638663,-500.0,0.00022612,4]
[365786169,1749912638672,-500.0,0.00022613,2]
[365786170,1749912638682,-479.18919863,0.00022624,7]
[365786171,1749912638691,-226.0,0.00022674,2]
[365786172,1749912638703,-303.0,0.00022694,2]
[365786173,1749912638713,-303.0,0.00022711,2]
[365786174,1749912638722,-479.18919863,0.00022728,7]
[365786175,1749912638733,-500.0,0.00022738,4]
[365786176,1749912638749,-500.0,0.00022738,4]
[365786177,1749912638758,-387.77144109,0.00022739,4]
[365786178,1749912638770,-460.0,0.00022739,4]
[365786179,1749912638780,-460.0,0.00022739,4]
[365786180,1749912638790,-270.87033034,0.00022739,4]
[365786181,1749912638800,-688.35,0.00022739,4]
[365786182,1749912638810,-180.0,0.00022739,4]
[365786183,1749912638819,-460.0,0.00022739,4]
[365786184,1749912638830,-460.0,0.00022739,4]
[365786185,1749912638840,-460.0,0.00022739,4]
[365786186,1749912638850,-715.45,0.00022739,4]
[365786187,1749912638860,-460.0,0.00022739,4]
[365786188,1749912638870,-738.45,0.00022739,4]
[365786189,1749912638879,-460.0,0.00022739,4]
[365786190,1749912638889,-460.0,0.00022739,4]
[365786191,1749912638898,-460.0,0.00022739,4]
[365786192,1749912638907,-460.0,0.00022739,4]
[365786193,1749912638916,-460.0,0.00022739,4]
[365786194,1749912638926,-758.04,0.00022739,4]
[365786195,1749912638936,-460.0,0.00022739,4]
[365786196,1749912638945,-460.0,0.00022739,4]
[365786197,1749912638955,-823.35,0.00022739,4]
[365786198,1749912638965,-460.0,0.00022739,4]
[365786199,1749912638974,-460.0,0.00022739,4]
[365786200,1749912638984,-460.0,0.00022739,4]
[365786201,1749912638993,-507.45,0.00022739,4]
[365786202,1749912639003,-460.0,0.00022739,4]
[365786203,1749912639012,-460.0,0.00022739,4]
[365786204,1749912639022,-350.48092731,0.00022739,4]
[365786205,1749912639031,-2711.89,0.00022739,4]
[365786206,1749912639040,-493.31,0.00022739,4]
[365786207,1749912639049,-460.0,0.00022739,4]
[365786208,1749912639059,-483.25,0.00022739,4]
[365786209,1749912639068,-2513.15,0.00022739,4]
[365786210,1749912639077,-460.0,0.00022739,4]
[365786211,1749912639086,-1320.67,0.00022739,4]
[365786212,1749912639096,-460.0,0.00022739,2]
[365786213,1749912639105,-460.0,0.00022739,4]
[365786214,1749912639114,-460.0,0.00022739,4]
[365786215,1749912639123,-460.0,0.00022739,4]
[365786216,1749912639133,-460.0,0.00022739,4]
[365786217,1749912639142,-2043.42,0.00022739,4]
[365786218,1749912639151,-460.0,0.00022739,4]
[365786219,1749912639160,-460.0,0.00022739,4]
[365786220,1749912639169,-2023.79,0.00022739,4]
[365786221,1749912639178,-460.0,0.00022739,4]
[365786222,1749912639187,-460.0,0.00022739,4]
[365786223,1749912639197,-460.0,0.00022739,4]
[365786224,1749912639206,-460.0,0.00022739,4]
[365786225,1749912639215,-1265.12,0.00022739,4]
[365786226,1749912639225,-3168.06,0.00022739,4]
[365786227,1749912639234,-713.72,0.00022739,4]
[365786228,1749912639243,-460.0,0.00022739,4]
[365786229,1749912639253,-3124.29,0.00022739,4]
[365786230,1749912639262,-568.72,0.00022739,4]
[365786231,1749912639272,-460.0,0.00022739,4]
[365786232,1749912639281,-460.0,0.00022739,4]
[365786233,1749912639291,-978.65,0.00022739,4]
[365786234,1749912639300,-460.0,0.00022739,4]
[365786235,1749912639310,-1354.42,0.00022739,4]
[365786236,1749912639319,-460.0,0.00022739,4]
[365786237,1749912639328,-460.0,0.00022739,4]
[365786238,1749912639337,-532.89681908,0.00022739,4]
[365786239,1749912639346,-1635.93,0.00022739,4]
[365786240,1749912639357,-460.0,0.00022739,4]
[365786241,1749912639367,-2896.64,0.00022739,4]
[365786242,1749912639376,-460.0,0.00022739,4]
[365786243,1749912639388,-250.0,0.00022739,4]
[365786244,1749912639397,-460.0,0.00022739,4]
[365786245,1749912639407,-2271.64,0.00022739,4]
[365786246,1749912639416,-460.0,0.00022739,4]
[365786247,1749912639425,-1048.61,0.00022739,4]
[365786248,1749912639435,-460.0,0.00022739,4]
[365786249,1749912639444,-1909.14178106,0.00022745,2]
[365786250,1749912639454,-479.18919863,0.00022831,8]
[365786251,1749912639463,-845.10789306,0.0002287,2]
[365786252,1749912639473,-424.40141186,0.00022901,2]
[365786253,1749912639484,-160.0,0.00022901,2]
[365786254,1749912639494,-835.41710878,0.00022901,2]
[365786255,1749912639503,-229.82479369,0.00022901,2]
[365786256,1749912639513,-479.18919863,0.00022934,8]
[365786257,1749912639523,-500.0,0.00022972,4]
[365786258,1749912639533,-504.24755457,0.00022973,2]
[365786259,1749912639542,-500.0,0.00022973,2]
[365786260,1749912639552,-500.0,0.00022973,2]
[365786261,1749912639562,-642.58741506,0.00022973,2]
[365786262,1749912639572,-500.0,0.00022973,2]
[365786263,1749912639582,-500.0,0.00022973,2]
[365786264,1749912639591,-622.2982472,0.00022973,2]
[365786265,1749912639601,-500.43031547,0.00022973,2]
[365786266,1749912639611,-502.13328092,0.00022973,2]
[365786267,1749912639621,-502.88093826,0.00022973,2]
[365786268,1749912639630,-561.80676681,0.00022973,2]
[365786269,1749912639639,-500.0,0.00022973,2]
[365786270,1749912639649,-500.68593713,0.00022973,2]
[365786271,1749912639662,-500.0,0.00022973,2]
[365786272,1749912639671,-500.0,0.00022973,2]
[365786273,1749912639681,-500.0,0.00022973,2]
[365786274,1749912639690,-500.0,0.00022973,2]
[365786275,1749912639701,-500.0,0.00022973,2]
[365786276,1749912639711,-501.59020549,0.00022973,2]
[365786277,1749912639720,-600.0,0.00022973,2]
[365786278,1749912639730,-500.0,0.00022973,2]
[365786279,1749912639740,-500.0,0.00022973,2]
[365786280,1749912639750,-500.0,0.00022973,2]
[365786281,1749912639760,-500.0,0.00022973,2]
[365786282,1749912639770,-500.0,0.00022973,2]
[365786283,1749912639779,-500.0,0.00022973,2]
[365786284,1749912639789,-500.0,0.00022973,2]
[365786285,1749912639798,-500.0,0.00022973,2]
[365786286,1749912639808,-500.0,0.00022973,2]
[365786287,1749912639818,-503.94136931,0.00022973,2]
[365786288,1749912639828,-100000.0,0.0002299,2]
[365786289,1749912639839,-226.0,0.00023009,2]
[365786290,1749912639848,-432.80819196,0.00023013,4]
[365786291,1749912639858,-440.0,0.00023013,4]
[365786292,1749912639868,-688.35,0.00023013,4]
[365786293,1749912639877,-460.0,0.00023013,4]